[Event "Early-Titled-Tuesday-Blitz-November-28-2023"]
[Site "Chess.com"]
[Date "2023.11.28"]
[Round "6"]
[White "MatthewG-p4p"]
[Black "Alexander_Donchenko"]
[Result "0-1"]
[WhiteElo "2940"]
[BlackElo "2895"]
[TimeControl "180+1"]
[EndTime "9:13:24 PST"]
[Termination "Alexander_Donchenko won by resignation"]

1. e4 {[%clk 0:03:00.2]} 1... c6 {[%clk 0:02:58.5]} 2. d4 {[%clk 0:03:00.1]}
2... d5 {[%clk 0:02:56.2]} 3. exd5 {[%clk 0:03:00.6]} 3... cxd5 {[%clk 0:02:57]}
4. Bd3 {[%clk 0:03:01.1]} 4... Nf6 {[%clk 0:02:57]} 5. h3 {[%clk 0:03:01.1]}
5... Nc6 {[%clk 0:02:57]} 6. c3 {[%clk 0:03:01.3]} 6... g6 {[%clk 0:02:57.1]} 7.
Nf3 {[%clk 0:02:58.6]} 7... Bf5 {[%clk 0:02:57.2]} 8. Be2 {[%clk 0:02:58.2]}
8... Bg7 {[%clk 0:02:56.2]} 9. O-O {[%clk 0:02:58.4]} 9... O-O {[%clk
0:02:56.3]} 10. Bf4 {[%clk 0:02:59.1]} 10... Ne4 {[%clk 0:02:51]} 11. Nbd2
{[%clk 0:02:58.9]} 11... Nd6 {[%clk 0:02:50.5]} 12. Re1 {[%clk 0:02:58.9]} 12...
a6 {[%clk 0:02:47.6]} 13. Ne5 {[%clk 0:02:39.5]} 13... Nxe5 {[%clk 0:02:43.1]}
14. dxe5 {[%clk 0:02:40.4]} 14... Ne4 {[%clk 0:02:43.1]} 15. Nb3 {[%clk
0:02:24.1]} 15... Rc8 {[%clk 0:02:35.6]} 16. Qd4 {[%clk 0:02:15.7]} 16... Be6
{[%clk 0:02:28.2]} 17. Qe3 {[%clk 0:02:06.4]} 17... Qc7 {[%clk 0:02:24.8]} 18.
f3 {[%clk 0:02:02.4]} 18... Nc5 {[%clk 0:02:23]} 19. Nd4 {[%clk 0:02:02.9]}
19... b5 {[%clk 0:02:18.4]} 20. Rad1 {[%clk 0:02:00.2]} 20... Na4 {[%clk
0:02:15.7]} 21. Rd2 {[%clk 0:01:48.1]} 21... Nb6 {[%clk 0:02:15.7]} 22. Bg3
{[%clk 0:01:32.9]} 22... Nc4 {[%clk 0:02:10.3]} 23. Bxc4 {[%clk 0:01:32.8]}
23... Qxc4 {[%clk 0:02:11.2]} 24. a3 {[%clk 0:01:29.7]} 24... Qc5 {[%clk
0:02:07.1]} 25. Kh2 {[%clk 0:01:29.3]} 25... a5 {[%clk 0:02:01]} 26. b4 {[%clk
0:01:07]} 26... Qxc3 {[%clk 0:01:49.3]} 27. Nxb5 {[%clk 0:00:54.7]} 27... Qxe3
{[%clk 0:01:47.4]} 28. Rxe3 {[%clk 0:00:54.9]} 28... axb4 {[%clk 0:01:47.8]} 29.
axb4 {[%clk 0:00:54.8]} 29... Rb8 {[%clk 0:01:47.7]} 30. Nc7 {[%clk 0:00:32]}
30... Bh6 {[%clk 0:01:47.5]} 31. f4 {[%clk 0:00:31.9]} 31... Rxb4 {[%clk
0:01:47.6]} 32. Nxd5 {[%clk 0:00:21.9]} 32... Bxd5 {[%clk 0:01:46.3]} 33. Rxd5
{[%clk 0:00:22.8]} 33... Rxf4 {[%clk 0:01:43.7]} 34. e6 {[%clk 0:00:22.7]} 34...
Rf5 {[%clk 0:01:34.8]} 35. exf7+ {[%clk 0:00:22.1]} 35... Kxf7 {[%clk
0:01:35.7]} 36. Ree5 {[%clk 0:00:16.3]} 36... Rxe5 {[%clk 0:01:35.4]} 37. Rxe5
{[%clk 0:00:16.9]} 37... Bg7 {[%clk 0:01:35]} 38. Re4 {[%clk 0:00:16.8]} 38...
Bf6 {[%clk 0:01:31.9]} 39. Bf4 {[%clk 0:00:16.4]} 39... Ra8 {[%clk 0:01:30.8]}
40. Kg3 {[%clk 0:00:16.4]} 40... Ra3+ {[%clk 0:01:30.5]} 41. Kf2 {[%clk
0:00:17.1]} 41... Ra2+ {[%clk 0:01:30.7]} 42. Kf3 {[%clk 0:00:17.2]} 42... Ra5
{[%clk 0:01:26.4]} 43. g3 {[%clk 0:00:15.5]} 43... e5 {[%clk 0:01:26.2]} 44. Bd2
{[%clk 0:00:15.4]} 44... Rb5 {[%clk 0:01:25]} 45. Ra4 {[%clk 0:00:15.1]} 45...
Rb3+ {[%clk 0:01:21.6]} 46. Kf2 {[%clk 0:00:12.5]} 46... Rb2 {[%clk 0:01:20.8]}
47. Ke1 {[%clk 0:00:13.2]} 47... Be7 {[%clk 0:01:16.8]} 48. Ra6 {[%clk
0:00:12.3]} 48... Bc5 {[%clk 0:01:10.8]} 49. Bc3 {[%clk 0:00:12.2]} 49... Rb3
{[%clk 0:01:11.2]} 50. Kd2 {[%clk 0:00:10.8]} 50... Bd4 {[%clk 0:01:10.9]} 51.
Bxd4 {[%clk 0:00:05.7]} 51... exd4 {[%clk 0:01:11.8]} 52. Ra7+ {[%clk
0:00:06.6]} 52... Kg8 {[%clk 0:01:11.9]} 53. g4 {[%clk 0:00:04.3]} 53... Rxh3
{[%clk 0:01:11.6]} 54. Rd7 {[%clk 0:00:05]} 54... d3 {[%clk 0:01:10.6]} 55. g5
{[%clk 0:00:03.1]} 55... Rg3 {[%clk 0:01:09.9]} 56. Rd5 {[%clk 0:00:03.5]} 56...
h6 {[%clk 0:01:08.5]} 57. gxh6 {[%clk 0:00:03.4]} 57... Kh7 {[%clk 0:01:09.1]}
58. Rxd3 {[%clk 0:00:01.4]} 58... Rxd3+ {[%clk 0:01:08.2]} 59. Kxd3 {[%clk
0:00:02.3]} 59... Kxh6 {[%clk 0:01:08.7]} 60. Ke3 {[%clk 0:00:03]} 60... Kg5
{[%clk 0:01:08.6]} 61. Kf3 {[%clk 0:00:03.9]} 61... Kh4 {[%clk 0:01:09]} 62. Kg2
{[%clk 0:00:04.7]} 62... Kg4 {[%clk 0:01:09.3]} 63. Kf2 {[%clk 0:00:05.1]} 63...
Kh3 {[%clk 0:01:09.5]} 64. Kg1 {[%clk 0:00:06]} 64... Kg3 {[%clk 0:01:09.3]} 65.
Kh1 {[%clk 0:00:06.3]} 65... g5 {[%clk 0:01:10.1]} 66. Kg1 {[%clk 0:00:06.7]}
66... g4 {[%clk 0:01:11]} 0-1

[Event "Early-Titled-Tuesday-Blitz-November-28-2023"]
[Site "Chess.com"]
[Date "2023.11.28"]
[Round "6"]
[White "C_K_G"]
[Black "Actuary44"]
[Result "0-1"]
[WhiteElo "2173"]
[BlackElo "2452"]
[TimeControl "180+1"]
[EndTime "9:13:24 PST"]
[Termination "Actuary44 won by resignation"]

1. e4 {[%clk 0:02:56]} 1... b6 {[%clk 0:02:59.6]} 2. Nf3 {[%clk 0:02:53.8]} 2...
Bb7 {[%clk 0:03:00.2]} 3. Nc3 {[%clk 0:02:52.6]} 3... e6 {[%clk 0:03:00.8]} 4.
d4 {[%clk 0:02:52.5]} 4... Nf6 {[%clk 0:03:01.3]} 5. Bg5 {[%clk 0:02:49.7]} 5...
Be7 {[%clk 0:03:00.8]} 6. e5 {[%clk 0:02:46.6]} 6... Ne4 {[%clk 0:03:01]} 7.
Nxe4 {[%clk 0:02:44.3]} 7... Bxe4 {[%clk 0:03:01.9]} 8. Bxe7 {[%clk 0:02:43.4]}
8... Qxe7 {[%clk 0:03:02.8]} 9. Bd3 {[%clk 0:02:42]} 9... Bb7 {[%clk 0:02:59.2]}
10. c3 {[%clk 0:02:40]} 10... O-O {[%clk 0:02:58.1]} 11. O-O {[%clk 0:02:39.5]}
11... d6 {[%clk 0:02:58.6]} 12. Re1 {[%clk 0:02:36.3]} 12... dxe5 {[%clk
0:02:58.2]} 13. Nxe5 {[%clk 0:02:36.1]} 13... Nd7 {[%clk 0:02:57.5]} 14. Be4
{[%clk 0:02:27.4]} 14... Bxe4 {[%clk 0:02:54.5]} 15. Rxe4 {[%clk 0:02:26.4]}
15... Nxe5 {[%clk 0:02:51.1]} 16. Rxe5 {[%clk 0:02:26.4]} 16... Rad8 {[%clk
0:02:45.9]} 17. Qe2 {[%clk 0:02:25.4]} 17... Qf6 {[%clk 0:02:36.8]} 18. h3
{[%clk 0:02:06.3]} 18... h6 {[%clk 0:02:36.9]} 19. a4 {[%clk 0:02:00.6]} 19...
a5 {[%clk 0:02:33.1]} 20. Qe3 {[%clk 0:01:56.9]} 20... Rd6 {[%clk 0:02:32.5]}
21. Re1 {[%clk 0:01:55.7]} 21... Rfd8 {[%clk 0:02:31.9]} 22. Qf3 {[%clk
0:01:51.7]} 22... Qxf3 {[%clk 0:02:27.7]} 23. gxf3 {[%clk 0:01:51.1]} 23... Rd5
{[%clk 0:02:16.5]} 24. f4 {[%clk 0:01:50]} 24... g6 {[%clk 0:02:11.4]} 25. Kg2
{[%clk 0:01:47.5]} 25... Kf8 {[%clk 0:02:04]} 26. Kf3 {[%clk 0:01:46]} 26... Ke7
{[%clk 0:02:02.8]} 27. h4 {[%clk 0:01:45]} 27... R8d6 {[%clk 0:01:53.7]} 28. h5
{[%clk 0:01:41.2]} 28... gxh5 {[%clk 0:01:54.6]} 29. Rh1 {[%clk 0:01:39.2]}
29... Rxe5 {[%clk 0:01:47.6]} 30. fxe5 {[%clk 0:01:37.8]} 30... Rc6 {[%clk
0:01:48.5]} 31. Rxh5 {[%clk 0:01:27.1]} 31... Rc4 {[%clk 0:01:48.3]} 32. Rxh6
{[%clk 0:01:26.6]} 32... Rxa4 {[%clk 0:01:48.2]} 33. Rh1 {[%clk 0:01:17]} 33...
c5 {[%clk 0:01:25.4]} 34. dxc5 {[%clk 0:01:14.7]} 34... bxc5 {[%clk 0:01:26.3]}
35. Ke3 {[%clk 0:01:14.4]} 35... Ra2 {[%clk 0:01:20.8]} 36. Rb1 {[%clk
0:01:13.2]} 36... Kd7 {[%clk 0:01:14.9]} 37. Kd3 {[%clk 0:01:08.6]} 37... Kc6
{[%clk 0:01:13.5]} 38. c4 {[%clk 0:01:08.6]} 38... a4 {[%clk 0:01:04.4]} 39. Kc3
{[%clk 0:01:07.9]} 39... Kb6 {[%clk 0:00:52.7]} 40. Rd1 {[%clk 0:00:46.5]} 40...
a3 {[%clk 0:00:50.5]} 41. bxa3 {[%clk 0:00:36.3]} 41... Rxa3+ {[%clk 0:00:44.4]}
42. Kc2 {[%clk 0:00:23.7]} 42... Ra2+ {[%clk 0:00:42.3]} 43. Kb3 {[%clk
0:00:20.1]} 43... Rxf2 {[%clk 0:00:43.2]} 44. Rd6+ {[%clk 0:00:20.1]} 44... Ka5
{[%clk 0:00:37.1]} 45. Rd7 {[%clk 0:00:15.5]} 45... Rf3+ {[%clk 0:00:36.7]} 46.
Kc2 {[%clk 0:00:15.4]} 46... Kb4 {[%clk 0:00:37.6]} 47. Ra7 {[%clk 0:00:13.5]}
47... Kxc4 {[%clk 0:00:37.6]} 48. Ra4+ {[%clk 0:00:13.6]} 48... Kd5 {[%clk
0:00:37.7]} 49. Ra7 {[%clk 0:00:13.2]} 49... Kxe5 {[%clk 0:00:37.7]} 50. Kd2
{[%clk 0:00:13.9]} 50... f5 {[%clk 0:00:35.4]} 0-1

[Event "Early-Titled-Tuesday-Blitz-November-28-2023"]
[Site "Chess.com"]
[Date "2023.11.28"]
[Round "6"]
[White "Arimin1329"]
[Black "Ajedrez_con_German"]
[Result "0-1"]
[WhiteElo "2393"]
[BlackElo "2619"]
[TimeControl "180+1"]
[EndTime "9:13:26 PST"]
[Termination "Ajedrez_con_German won by resignation"]

1. Nf3 {[%clk 0:03:00.9]} 1... e6 {[%clk 0:02:55.7]} 2. g3 {[%clk 0:03:00.1]}
2... f5 {[%clk 0:02:55.1]} 3. Bg2 {[%clk 0:02:59.4]} 3... Nf6 {[%clk 0:02:55.5]}
4. c4 {[%clk 0:02:57.3]} 4... b6 {[%clk 0:02:53.9]} 5. Ne5 {[%clk 0:02:42]} 5...
c6 {[%clk 0:02:53.7]} 6. d4 {[%clk 0:02:41.7]} 6... Bb7 {[%clk 0:02:48.9]} 7.
O-O {[%clk 0:02:40.5]} 7... d6 {[%clk 0:02:49.2]} 8. Nd3 {[%clk 0:02:40.1]} 8...
Be7 {[%clk 0:02:43.7]} 9. Nc3 {[%clk 0:02:29.8]} 9... d5 {[%clk 0:02:24.7]} 10.
b3 {[%clk 0:02:23]} 10... O-O {[%clk 0:02:24.1]} 11. Bg5 {[%clk 0:02:19.5]}
11... Ne4 {[%clk 0:02:23.8]} 12. Bxe7 {[%clk 0:02:17.6]} 12... Qxe7 {[%clk
0:02:23.4]} 13. Nxe4 {[%clk 0:02:16.5]} 13... fxe4 {[%clk 0:02:23.2]} 14. Ne5
{[%clk 0:02:16.1]} 14... Nd7 {[%clk 0:02:20.5]} 15. Nxd7 {[%clk 0:02:12.2]}
15... Qxd7 {[%clk 0:02:21.4]} 16. f3 {[%clk 0:02:08.4]} 16... exf3 {[%clk
0:02:08.1]} 17. exf3 {[%clk 0:02:08.1]} 17... Rad8 {[%clk 0:01:51.9]} 18. cxd5
{[%clk 0:01:51.2]} 18... Qxd5 {[%clk 0:01:50.2]} 19. Re1 {[%clk 0:01:49.8]}
19... Rfe8 {[%clk 0:01:41.5]} 20. Re4 {[%clk 0:01:48.9]} 20... c5 {[%clk
0:01:35.7]} 21. Qd3 {[%clk 0:01:19.1]} 21... Qf5 {[%clk 0:01:14]} 22. Re3 {[%clk
0:01:07.7]} 22... Qxd3 {[%clk 0:01:13.4]} 23. Rxd3 {[%clk 0:01:08.6]} 23... Rxd4
{[%clk 0:01:12.7]} 24. Rxd4 {[%clk 0:01:06.2]} 24... cxd4 {[%clk 0:01:13]} 25.
f4 {[%clk 0:01:05.7]} 25... Bxg2 {[%clk 0:01:10.4]} 26. Kxg2 {[%clk 0:01:06.6]}
26... e5 {[%clk 0:01:06.3]} 27. fxe5 {[%clk 0:01:06.9]} 27... Rxe5 {[%clk
0:01:06.1]} 28. Kf3 {[%clk 0:01:07.2]} 28... Re3+ {[%clk 0:01:01.5]} 29. Kf4
{[%clk 0:01:06.4]} 29... Re2 {[%clk 0:00:59.8]} 30. h4 {[%clk 0:01:06.2]} 30...
d3 {[%clk 0:00:48.8]} 31. a4 {[%clk 0:01:01.4]} 31... Rb2 {[%clk 0:00:45.6]} 32.
Ke3 {[%clk 0:00:45.2]} 32... Rxb3 {[%clk 0:00:45.7]} 33. Rc1 {[%clk 0:00:36.3]}
33... a5 {[%clk 0:00:38.2]} 34. Rc7 {[%clk 0:00:33.6]} 34... h5 {[%clk
0:00:28.7]} 35. Rd7 {[%clk 0:00:26.8]} 35... Ra3 {[%clk 0:00:23.6]} 36. Rd4
{[%clk 0:00:21.8]} 36... Kf7 {[%clk 0:00:20.5]} 37. Kf4 {[%clk 0:00:20.5]} 37...
Ke6 {[%clk 0:00:17.8]} 38. Kg5 {[%clk 0:00:20.5]} 38... Ke5 {[%clk 0:00:18.2]}
39. Rd7 {[%clk 0:00:19.5]} 39... Ke4 {[%clk 0:00:18.6]} 40. Kxh5 {[%clk
0:00:19.9]} 40... Ke3 {[%clk 0:00:18.6]} 41. g4 {[%clk 0:00:19.8]} 41... Rxa4
{[%clk 0:00:18.2]} 42. g5 {[%clk 0:00:18.9]} 42... Rd4 {[%clk 0:00:18]} 43. Re7+
{[%clk 0:00:19.4]} 43... Kf2 {[%clk 0:00:18]} 44. Rf7+ {[%clk 0:00:19.7]} 44...
Kg2 {[%clk 0:00:17.7]} 45. Kg6 {[%clk 0:00:18.4]} 45... d2 {[%clk 0:00:17.5]}
46. Rxg7 {[%clk 0:00:17.3]} 46... d1=Q {[%clk 0:00:17.4]} 47. h5 {[%clk
0:00:18.2]} 47... Rd6+ {[%clk 0:00:17]} 48. Kh7 {[%clk 0:00:17.2]} 48... Qxh5+
{[%clk 0:00:16.8]} 0-1

[Event "Early-Titled-Tuesday-Blitz-November-28-2023"]
[Site "Chess.com"]
[Date "2023.11.28"]
[Round "6"]
[White "nindjaxx8"]
[Black "pinguino120"]
[Result "0-1"]
[WhiteElo "2446"]
[BlackElo "2296"]
[TimeControl "180+1"]
[EndTime "9:13:28 PST"]
[Termination "pinguino120 won by resignation"]

1. d4 {[%clk 0:02:56.4]} 1... d5 {[%clk 0:03:00.2]} 2. c4 {[%clk 0:02:54.1]}
2... c6 {[%clk 0:03:00.1]} 3. Nc3 {[%clk 0:02:54.3]} 3... Nf6 {[%clk 0:03:00]}
4. cxd5 {[%clk 0:02:53.2]} 4... cxd5 {[%clk 0:03:00.1]} 5. Bf4 {[%clk
0:02:52.6]} 5... Nc6 {[%clk 0:02:47.7]} 6. e3 {[%clk 0:02:52.7]} 6... a6 {[%clk
0:02:45.1]} 7. Nf3 {[%clk 0:02:51.6]} 7... Bg4 {[%clk 0:02:45.1]} 8. Be2 {[%clk
0:02:51.3]} 8... e6 {[%clk 0:02:45.1]} 9. Ne5 {[%clk 0:02:49.7]} 9... Bxe2
{[%clk 0:02:41.4]} 10. Qxe2 {[%clk 0:02:49.2]} 10... Be7 {[%clk 0:02:39.8]} 11.
O-O {[%clk 0:02:46]} 11... O-O {[%clk 0:02:39.4]} 12. Nxc6 {[%clk 0:02:45.3]}
12... bxc6 {[%clk 0:02:39.2]} 13. Na4 {[%clk 0:02:46.2]} 13... Ne4 {[%clk
0:02:26.7]} 14. Rac1 {[%clk 0:02:43.4]} 14... Qa5 {[%clk 0:02:12.2]} 15. b3
{[%clk 0:02:42.7]} 15... Rfc8 {[%clk 0:01:34.3]} 16. f3 {[%clk 0:02:31.7]} 16...
Nd6 {[%clk 0:01:28.5]} 17. Bxd6 {[%clk 0:02:19.7]} 17... Bxd6 {[%clk 0:01:28.4]}
18. Nc5 {[%clk 0:02:20.6]} 18... Qb6 {[%clk 0:01:18.8]} 19. Rc2 {[%clk
0:02:16.6]} 19... a5 {[%clk 0:01:19.1]} 20. Na4 {[%clk 0:02:13.4]} 20... Qa6
{[%clk 0:01:05.8]} 21. Qxa6 {[%clk 0:02:10.7]} 21... Rxa6 {[%clk 0:01:06.7]} 22.
Rfc1 {[%clk 0:02:11.1]} 22... Ba3 {[%clk 0:01:06.9]} 23. Rd1 {[%clk 0:02:09]}
23... c5 {[%clk 0:01:05.9]} 24. dxc5 {[%clk 0:01:37.7]} 24... Rac6 {[%clk
0:01:04.5]} 25. Kf1 {[%clk 0:01:36.6]} 25... Kf8 {[%clk 0:01:00.8]} 26. Ke2
{[%clk 0:01:34.4]} 26... Ke7 {[%clk 0:01:00.4]} 27. e4 {[%clk 0:01:06.1]} 27...
dxe4 {[%clk 0:00:54.6]} 28. fxe4 {[%clk 0:01:07]} 28... Bxc5 {[%clk 0:00:49.9]}
29. Rdc1 {[%clk 0:01:04.5]} 29... Kd6 {[%clk 0:00:50.1]} 30. Nxc5 {[%clk
0:00:27.5]} 30... Rxc5 {[%clk 0:00:49.3]} 31. Rxc5 {[%clk 0:00:28.4]} 31... Rxc5
{[%clk 0:00:49]} 32. Rxc5 {[%clk 0:00:29.3]} 32... Kxc5 {[%clk 0:00:49.9]} 33.
Kd3 {[%clk 0:00:28.7]} 33... Kb4 {[%clk 0:00:49.6]} 34. Kc2 {[%clk 0:00:19.5]}
34... Ka3 {[%clk 0:00:49.9]} 35. Kb1 {[%clk 0:00:18]} 35... f5 {[%clk
0:00:39.8]} 36. e5 {[%clk 0:00:15.4]} 36... g5 {[%clk 0:00:38.8]} 37. Kc2 {[%clk
0:00:15.9]} 37... Kxa2 {[%clk 0:00:37.6]} 38. Kc3 {[%clk 0:00:14.7]} 38... Ka3
{[%clk 0:00:33.2]} 39. Kc4 {[%clk 0:00:13.8]} 39... f4 {[%clk 0:00:29.7]} 40. h3
{[%clk 0:00:13]} 40... h5 {[%clk 0:00:28.6]} 41. Kc5 {[%clk 0:00:07.2]} 41...
Kxb3 {[%clk 0:00:23.2]} 42. Kd6 {[%clk 0:00:08.1]} 42... a4 {[%clk 0:00:23.6]}
43. Kxe6 {[%clk 0:00:09]} 43... a3 {[%clk 0:00:24.1]} 44. Kf7 {[%clk 0:00:08.9]}
44... a2 {[%clk 0:00:24.6]} 45. e6 {[%clk 0:00:09.8]} 45... a1=Q {[%clk
0:00:24.2]} 46. e7 {[%clk 0:00:10.7]} 46... Qe5 {[%clk 0:00:20.6]} 47. e8=Q
{[%clk 0:00:08.9]} 47... Qxe8+ {[%clk 0:00:20.6]} 48. Kxe8 {[%clk 0:00:09.8]}
48... g4 {[%clk 0:00:21]} 49. hxg4 {[%clk 0:00:10.2]} 49... hxg4 {[%clk
0:00:21.5]} 0-1

[Event "Early-Titled-Tuesday-Blitz-November-28-2023"]
[Site "Chess.com"]
[Date "2023.11.28"]
[Round "6"]
[White "Predator0608"]
[Black "bescmelasti"]
[Result "0-1"]
[WhiteElo "2591"]
[BlackElo "2659"]
[TimeControl "180+1"]
[EndTime "9:13:31 PST"]
[Termination "bescmelasti won by resignation"]

1. e4 {[%clk 0:03:00.9]} 1... e6 {[%clk 0:02:56.9]} 2. d4 {[%clk 0:03:00.5]}
2... d5 {[%clk 0:02:57.8]} 3. Nd2 {[%clk 0:02:59.1]} 3... c5 {[%clk 0:02:57.4]}
4. Ngf3 {[%clk 0:02:58.1]} 4... cxd4 {[%clk 0:02:54.4]} 5. Nxd4 {[%clk 0:02:58]}
5... Nc6 {[%clk 0:02:55]} 6. Bb5 {[%clk 0:02:57.5]} 6... Bd7 {[%clk 0:02:55.4]}
7. Nxc6 {[%clk 0:02:57.1]} 7... bxc6 {[%clk 0:02:56.3]} 8. Bd3 {[%clk 0:02:58]}
8... Qc7 {[%clk 0:02:55]} 9. O-O {[%clk 0:02:49.5]} 9... Bd6 {[%clk 0:02:54.6]}
10. h3 {[%clk 0:02:43.8]} 10... Ne7 {[%clk 0:02:49.8]} 11. Qg4 {[%clk
0:02:38.1]} 11... O-O {[%clk 0:02:45.8]} 12. Qh5 {[%clk 0:02:27]} 12... Ng6
{[%clk 0:02:13.2]} 13. Nf3 {[%clk 0:02:24.5]} 13... Nf4 {[%clk 0:01:53]} 14.
Bxf4 {[%clk 0:02:18.7]} 14... Bxf4 {[%clk 0:01:53.9]} 15. g3 {[%clk 0:01:40.2]}
15... g6 {[%clk 0:01:14]} 16. Qh4 {[%clk 0:01:37.3]} 16... Be5 {[%clk
0:01:06.9]} 17. c3 {[%clk 0:01:00.9]} 17... Bg7 {[%clk 0:01:05.7]} 18. exd5
{[%clk 0:00:49.2]} 18... cxd5 {[%clk 0:00:56.8]} 19. Rfe1 {[%clk 0:00:35.4]}
19... Rab8 {[%clk 0:00:56.5]} 20. Re2 {[%clk 0:00:35.3]} 20... Qd8 {[%clk
0:00:39.9]} 21. Qf4 {[%clk 0:00:33]} 21... Qf6 {[%clk 0:00:35.6]} 22. Qe3 {[%clk
0:00:28.8]} 22... Rb7 {[%clk 0:00:20.5]} 23. h4 {[%clk 0:00:20.5]} 23... Rfb8
{[%clk 0:00:19.2]} 24. Rb1 {[%clk 0:00:20.9]} 24... a5 {[%clk 0:00:17.1]} 25. h5
{[%clk 0:00:20.9]} 25... a4 {[%clk 0:00:16.6]} 26. hxg6 {[%clk 0:00:19.4]} 26...
hxg6 {[%clk 0:00:16.3]} 27. Rc2 {[%clk 0:00:19.6]} 27... Rc7 {[%clk 0:00:12]}
28. Bf1 {[%clk 0:00:15.1]} 28... a3 {[%clk 0:00:11.1]} 29. b3 {[%clk 0:00:14.2]}
29... Rxc3 {[%clk 0:00:10.7]} 30. Rxc3 {[%clk 0:00:14.8]} 30... Qxc3 {[%clk
0:00:11.4]} 31. Qf4 {[%clk 0:00:15.2]} 31... Rc8 {[%clk 0:00:10.8]} 32. Rc1
{[%clk 0:00:16]} 32... Qxc1 {[%clk 0:00:10.4]} 33. Qd6 {[%clk 0:00:14.6]} 33...
Qc7 {[%clk 0:00:09.1]} 34. Qxa3 {[%clk 0:00:14.3]} 34... d4 {[%clk 0:00:06.4]}
35. Ng5 {[%clk 0:00:13.3]} 35... Bc6 {[%clk 0:00:06.8]} 36. Bc4 {[%clk
0:00:12.5]} 36... Bd5 {[%clk 0:00:07.3]} 0-1

[Event "Early-Titled-Tuesday-Blitz-November-28-2023"]
[Site "Chess.com"]
[Date "2023.11.28"]
[Round "6"]
[White "grandemestregringo"]
[Black "Quattroporte300"]
[Result "0-1"]
[WhiteElo "2607"]
[BlackElo "2415"]
[TimeControl "180+1"]
[EndTime "9:13:31 PST"]
[Termination "Quattroporte300 won on time"]

1. f4 {[%clk 0:03:00.9]} 1... c5 {[%clk 0:02:53.5]} 2. Nf3 {[%clk 0:02:59]} 2...
Nc6 {[%clk 0:02:52.7]} 3. e3 {[%clk 0:02:54.7]} 3... g6 {[%clk 0:02:46.6]} 4.
Bb5 {[%clk 0:02:54.4]} 4... Bg7 {[%clk 0:02:46.4]} 5. O-O {[%clk 0:02:54.2]}
5... d6 {[%clk 0:02:44.8]} 6. d3 {[%clk 0:02:45.1]} 6... Bd7 {[%clk 0:02:43.7]}
7. e4 {[%clk 0:02:28.4]} 7... Nf6 {[%clk 0:02:41.6]} 8. Nc3 {[%clk 0:02:22.7]}
8... O-O {[%clk 0:02:41.3]} 9. Kh1 {[%clk 0:02:14.7]} 9... a6 {[%clk 0:02:41.4]}
10. Ba4 {[%clk 0:01:58.9]} 10... b5 {[%clk 0:02:40.4]} 11. Bb3 {[%clk
0:01:58.9]} 11... c4 {[%clk 0:02:29.5]} 12. dxc4 {[%clk 0:01:51.1]} 12... b4
{[%clk 0:02:29.9]} 13. Nd5 {[%clk 0:01:45.3]} 13... Nxe4 {[%clk 0:02:29.7]} 14.
Qe2 {[%clk 0:01:39]} 14... Nf6 {[%clk 0:02:15]} 15. Bd2 {[%clk 0:01:26.3]} 15...
a5 {[%clk 0:02:13.9]} 16. Ba4 {[%clk 0:01:24.4]} 16... e6 {[%clk 0:02:09.9]} 17.
Nxf6+ {[%clk 0:01:20.4]} 17... Bxf6 {[%clk 0:02:03.4]} 18. Rab1 {[%clk
0:01:11.6]} 18... Nd4 {[%clk 0:02:00.3]} 19. Nxd4 {[%clk 0:01:11.5]} 19... Bxa4
{[%clk 0:01:59.8]} 20. Be3 {[%clk 0:01:08.5]} 20... Rc8 {[%clk 0:01:56.9]} 21.
b3 {[%clk 0:01:08.5]} 21... Bd7 {[%clk 0:01:56.3]} 22. Rbd1 {[%clk 0:01:04.4]}
22... Qe7 {[%clk 0:01:49.2]} 23. Nf3 {[%clk 0:00:48.5]} 23... Bc6 {[%clk
0:01:47.1]} 24. Nd4 {[%clk 0:00:43.4]} 24... Be4 {[%clk 0:01:39.9]} 25. Nb5
{[%clk 0:00:37.9]} 25... d5 {[%clk 0:01:38.4]} 26. c5 {[%clk 0:00:34.8]} 26...
Rxc5 {[%clk 0:01:24.4]} 27. Bxc5 {[%clk 0:00:18.9]} 27... Qxc5 {[%clk
0:01:25.3]} 28. f5 {[%clk 0:00:19.8]} 28... gxf5 {[%clk 0:01:18.3]} 29. Rf4
{[%clk 0:00:19.6]} 29... Kh8 {[%clk 0:01:08.8]} 30. Rxe4 {[%clk 0:00:18.6]}
30... fxe4 {[%clk 0:01:04.8]} 31. Rf1 {[%clk 0:00:18]} 31... Bg7 {[%clk
0:01:04.6]} 32. h4 {[%clk 0:00:13.6]} 32... f5 {[%clk 0:01:04.6]} 33. h5 {[%clk
0:00:12.7]} 33... Rb8 {[%clk 0:01:01.5]} 34. a4 {[%clk 0:00:12.2]} 34... bxa3
{[%clk 0:01:00.5]} 35. c4 {[%clk 0:00:12.9]} 35... d4 {[%clk 0:00:56.6]} 36. Qd2
{[%clk 0:00:09.9]} 36... d3 {[%clk 0:00:53]} 37. Qg5 {[%clk 0:00:08.9]} 37...
Qe5 {[%clk 0:00:44.6]} 38. h6 {[%clk 0:00:08.8]} 38... Bf6 {[%clk 0:00:45.2]}
39. Qd2 {[%clk 0:00:07.3]} 39... Qg3 {[%clk 0:00:37.4]} 40. Kg1 {[%clk
0:00:07.5]} 40... Rxb5 {[%clk 0:00:32]} 41. cxb5 {[%clk 0:00:05.3]} 41... Bd4+
{[%clk 0:00:32.5]} 42. Rf2 {[%clk 0:00:05.7]} 42... Qxf2+ {[%clk 0:00:25.9]} 43.
Qxf2 {[%clk 0:00:06]} 43... Bxf2+ {[%clk 0:00:26.6]} 44. Kxf2 {[%clk 0:00:06.9]}
44... a2 {[%clk 0:00:27]} 45. b6 {[%clk 0:00:07.1]} 45... a1=Q {[%clk
0:00:24.9]} 46. b7 {[%clk 0:00:08]} 46... Qb2+ {[%clk 0:00:24.9]} 47. Kg3 {[%clk
0:00:07.4]} 47... Qxb3 {[%clk 0:00:25.2]} 0-1